[Event "Titled Tuesday Blitz February 21 Early 2023"]
[White "Hirneise, Jens"]
[Black "Pourkashiyan, Atousa"]
[WhiteFideId "24614734"]
[BlackFideId "12502014"]
[WhiteElo "2277"]
[BlackElo "2282"]
[Result "0-1"]
[Round "06"]
[TimeControl "180+2"]
[Date "2023.02.21"]
[WhiteClock "0:00:25"]
[BlackClock "0:00:19"]

1. d4 {[%clk 0:03:00]}  Nf6 {[%clk 0:02:55]} 2. c4 {[%clk 0:03:00]}  e6 {[%clk 0:02:54]} 3. Nc3 {[%clk 0:03:00]}  Bb4 {[%clk 0:02:54]} 4. e3 {[%clk 0:03:00]}  O-O {[%clk 0:02:52]} 5. Bd2 {[%clk 0:02:59]}  c5 {[%clk 0:02:48]} 6. a3 {[%clk 0:02:58]}  cxd4 {[%clk 0:02:43]} 7. axb4 {[%clk 0:02:56]}  dxc3 {[%clk 0:02:44]} 8. bxc3 {[%clk 0:02:54]}  b6 {[%clk 0:02:34]} 9. Bd3 {[%clk 0:02:47]}  Bb7 {[%clk 0:02:33]} 10. Nf3 {[%clk 0:02:47]}  d5 {[%clk 0:02:22]} 11. O-O {[%clk 0:02:38]}  Nbd7 {[%clk 0:02:12]} 12. cxd5 {[%clk 0:02:33]}  exd5 {[%clk 0:01:48]} 13. Nd4 {[%clk 0:02:05]}  Ne5 {[%clk 0:01:44]} 14. Be2 {[%clk 0:02:01]}  a5 {[%clk 0:01:34]} 15. Qb3 {[%clk 0:01:44]}  Qe7 {[%clk 0:00:52]} 16. bxa5 {[%clk 0:01:35]}  bxa5 {[%clk 0:00:51]} 17. Nf5 {[%clk 0:01:32]}  Qd7 {[%clk 0:00:51]} 18. Nd4 {[%clk 0:01:24]}  Ne4 {[%clk 0:00:46]} 19. Be1 {[%clk 0:01:19]}  Rfb8 {[%clk 0:00:42]} 20. Qa4 {[%clk 0:01:14]}  Qxa4 {[%clk 0:00:27]} 21. Rxa4 {[%clk 0:01:15]}  Nc5 {[%clk 0:00:28]} 22. Ra3 {[%clk 0:01:04]}  a4 {[%clk 0:00:28]} 23. f3 {[%clk 0:00:42]}  Ba6 {[%clk 0:00:25]} 24. Bxa6 {[%clk 0:00:40]}  Rxa6 {[%clk 0:00:24]} 25. Bg3 {[%clk 0:00:39]}  Re8 {[%clk 0:00:23]} 26. Nb5 {[%clk 0:00:30]}  Nc4 {[%clk 0:00:20]} 27. Ra2 {[%clk 0:00:20]}  Ne6 {[%clk 0:00:14]} 28. e4 {[%clk 0:00:19]}  dxe4 {[%clk 0:00:13]} 29. fxe4 {[%clk 0:00:20]}  f6 {[%clk 0:00:12]} 30. Rd1 {[%clk 0:00:20]}  Re7 {[%clk 0:00:11]} 31. Na3 {[%clk 0:00:17]}  Nxa3 {[%clk 0:00:10]} 32. Rxa3 {[%clk 0:00:18]}  Nc5 {[%clk 0:00:10]} 33. Rd8+ {[%clk 0:00:14]}  Kf7 {[%clk 0:00:09]} 34. Bd6 {[%clk 0:00:14]}  Rd7 {[%clk 0:00:10]} 35. Rxd7+ {[%clk 0:00:15]}  Nxd7 {[%clk 0:00:10]} 36. Kf2 {[%clk 0:00:15]}  Nb6 {[%clk 0:00:10]} 37. Bb4 {[%clk 0:00:13]}  Nc4 {[%clk 0:00:10]} 38. Ra2 {[%clk 0:00:13]}  Ke6 {[%clk 0:00:09]} 39. Ke2 {[%clk 0:00:14]}  Ne5 {[%clk 0:00:09]} 40. Ke3 {[%clk 0:00:15]}  Nc4+ {[%clk 0:00:09]} 41. Kd4 {[%clk 0:00:15]}  Ne5 {[%clk 0:00:09]} 42. Kc5 {[%clk 0:00:15]}  Ra8 {[%clk 0:00:08]} 43. Kb5 {[%clk 0:00:15]}  Nd3 {[%clk 0:00:06]} 44. Rxa4 {[%clk 0:00:15]}  Rb8+ {[%clk 0:00:03]} 45. Kc6 {[%clk 0:00:15]}  Nb2 {[%clk 0:00:02]} 46. Ra6 {[%clk 0:00:14]}  Kf7 {[%clk 0:00:01]} 47. Kc7 {[%clk 0:00:15]}  Re8 {[%clk 0:00:01]} 48. Ra7 {[%clk 0:00:14]}  Nd3 {[%clk 0:00:01]} 49. Kd6+ {[%clk 0:00:13]}  Kg6 {[%clk 0:00:02]} 50. Kd5 {[%clk 0:00:12]}  Re5+ {[%clk 0:00:02]} 51. Kd4 {[%clk 0:00:12]}  Nb2 {[%clk 0:00:03]} 52. Ra5 {[%clk 0:00:11]}  Nd1 {[%clk 0:00:04]} 53. Rxe5 {[%clk 0:00:11]}  fxe5+ {[%clk 0:00:05]} 54. Kxe5 {[%clk 0:00:12]}  Ne3 {[%clk 0:00:05]} 55. Kf4 {[%clk 0:00:12]}  Nxg2+ {[%clk 0:00:06]} 56. Kf3 {[%clk 0:00:12]}  Ne1+ {[%clk 0:00:07]} 57. Ke2 {[%clk 0:00:13]}  Nc2 {[%clk 0:00:07]} 58. c4 {[%clk 0:00:13]}  Nxb4 {[%clk 0:00:07]} 59. c5 {[%clk 0:00:14]}  Nc6 {[%clk 0:00:08]} 60. Kd3 {[%clk 0:00:14]}  Kf6 {[%clk 0:00:09]} 61. Kc4 {[%clk 0:00:15]}  Ke6 {[%clk 0:00:09]} 62. Kb5 {[%clk 0:00:16]}  Kd7 {[%clk 0:00:09]} 63. Kb6 {[%clk 0:00:16]}  Ne5 {[%clk 0:00:09]} 64. h3 {[%clk 0:00:17]}  g5 {[%clk 0:00:09]} 65. Kb5 {[%clk 0:00:17]}  h5 {[%clk 0:00:10]} 66. Kb4 {[%clk 0:00:16]}  Kc6 {[%clk 0:00:10]} 67. Kc3 {[%clk 0:00:15]}  Kxc5 {[%clk 0:00:11]} 68. Kd2 {[%clk 0:00:15]}  Kd4 {[%clk 0:00:12]} 69. Ke2 {[%clk 0:00:16]}  Kxe4 {[%clk 0:00:12]} 70. Kf2 {[%clk 0:00:16]}  Kf4 {[%clk 0:00:13]} 71. Kg2 {[%clk 0:00:17]}  g4 {[%clk 0:00:14]} 72. h4 {[%clk 0:00:18]}  g3 {[%clk 0:00:14]} 73. Kh3 {[%clk 0:00:18]}  Ng6 {[%clk 0:00:14]} 74. Kg2 {[%clk 0:00:18]}  Nxh4+ {[%clk 0:00:15]} 75. Kh3 {[%clk 0:00:19]}  Ng6 {[%clk 0:00:15]} 76. Kg2 {[%clk 0:00:20]}  h4 {[%clk 0:00:16]} 77. Kh3 {[%clk 0:00:21]}  Kg5 {[%clk 0:00:17]} 78. Kg2 {[%clk 0:00:22]}  Kg4 {[%clk 0:00:17]} 79. Kh1 {[%clk 0:00:22]}  h3 {[%clk 0:00:18]} 80. Kg1 {[%clk 0:00:23]}  Ne5 {[%clk 0:00:19]} 81. Kh1 {[%clk 0:00:24]}  g2+ {[%clk 0:00:19]} 82. Kg1 {[%clk 0:00:25]}  Nf3+ {[%clk 0:00:19]} 0-1


[Site "https://www.chess.com"]

[Event "Titled Tuesday Blitz February 21 Early 2023"]
[White "Shubin, Daniel"]
[Black "Santos Flores, Alberto"]
[WhiteFideId "30936470"]
[BlackFideId "3601234"]
[WhiteElo "2231"]
[BlackElo "2164"]
[Result "0-1"]
[Round "06"]
[TimeControl "180+2"]
[Date "2023.02.21"]
[WhiteClock "0:00:11"]
[BlackClock "0:00:55"]

1. e4 {[%clk 0:03:00]}  c5 {[%clk 0:02:59]} 2. Nf3 {[%clk 0:03:00]}  Nc6 {[%clk 0:02:59]} 3. d4 {[%clk 0:03:00]}  cxd4 {[%clk 0:02:59]} 4. Nxd4 {[%clk 0:03:01]}  g6 {[%clk 0:02:59]} 5. Nc3 {[%clk 0:03:02]}  Bg7 {[%clk 0:02:59]} 6. Be3 {[%clk 0:03:02]}  Nf6 {[%clk 0:02:59]} 7. Bc4 {[%clk 0:03:03]}  O-O {[%clk 0:02:59]} 8. Bb3 {[%clk 0:03:02]}  d6 {[%clk 0:03:00]} 9. h3 {[%clk 0:03:02]}  Bd7 {[%clk 0:02:59]} 10. O-O {[%clk 0:03:03]}  Nxd4 {[%clk 0:02:57]} 11. Bxd4 {[%clk 0:03:03]}  a5 {[%clk 0:02:57]} 12. a4 {[%clk 0:03:00]}  Bc6 {[%clk 0:02:57]} 13. Qd3 {[%clk 0:02:59]}  Nd7 {[%clk 0:02:57]} 14. Bxg7 {[%clk 0:02:58]}  Kxg7 {[%clk 0:02:57]} 15. Qd4+ {[%clk 0:02:52]}  Kg8 {[%clk 0:02:57]} 16. Bd5 {[%clk 0:02:49]}  Qb6 {[%clk 0:02:55]} 17. Qxb6 {[%clk 0:02:46]}  Nxb6 {[%clk 0:02:56]} 18. Rad1 {[%clk 0:02:36]}  Nxa4 {[%clk 0:02:24]} 19. Nxa4 {[%clk 0:01:21]}  Bxa4 {[%clk 0:02:24]} 20. Ra1 {[%clk 0:01:22]}  Bc6 {[%clk 0:02:23]} 21. Bxc6 {[%clk 0:01:18]}  bxc6 {[%clk 0:02:23]} 22. Ra4 {[%clk 0:01:19]}  Rfb8 {[%clk 0:02:20]} 23. b3 {[%clk 0:01:19]}  Rb4 {[%clk 0:02:19]} 24. Rfa1 {[%clk 0:01:18]}  Rxa4 {[%clk 0:02:19]} 25. Rxa4 {[%clk 0:01:19]}  c5 {[%clk 0:02:19]} 26. c3 {[%clk 0:01:19]}  Rb8 {[%clk 0:02:18]} 27. Ra3 {[%clk 0:01:18]}  c4 {[%clk 0:02:03]} 28. bxc4 {[%clk 0:01:18]}  Rc8 {[%clk 0:02:02]} 29. Ra4 {[%clk 0:01:16]}  Rc5 {[%clk 0:02:00]} 30. Kf1 {[%clk 0:01:16]}  Kf8 {[%clk 0:02:00]} 31. Ke2 {[%clk 0:01:16]}  Ke8 {[%clk 0:02:00]} 32. Kd3 {[%clk 0:01:17]}  Kd7 {[%clk 0:02:00]} 33. Ra1 {[%clk 0:01:17]}  Kc7 {[%clk 0:02:00]} 34. Rb1 {[%clk 0:01:16]}  f5 {[%clk 0:01:57]} 35. f3 {[%clk 0:01:12]}  fxe4+ {[%clk 0:01:56]} 36. fxe4 {[%clk 0:01:12]}  Rg5 {[%clk 0:01:55]} 37. g4 {[%clk 0:01:11]}  h5 {[%clk 0:01:55]} 38. Rb5 {[%clk 0:01:05]}  Rxb5 {[%clk 0:01:20]} 39. cxb5 {[%clk 0:01:06]}  Kb6 {[%clk 0:01:21]} 40. c4 {[%clk 0:01:04]}  Kc5 {[%clk 0:01:21]} 41. Kc3 {[%clk 0:00:40]}  e6 {[%clk 0:01:20]} 42. gxh5 {[%clk 0:00:15]}  gxh5 {[%clk 0:01:20]} 43. h4 {[%clk 0:00:16]}  d5 {[%clk 0:01:07]} 44. cxd5 {[%clk 0:00:15]}  exd5 {[%clk 0:01:07]} 45. e5 {[%clk 0:00:16]}  Kxb5 {[%clk 0:01:07]} 46. Kd4 {[%clk 0:00:15]}  Kc6 {[%clk 0:01:06]} 47. e6 {[%clk 0:00:15]}  a4 {[%clk 0:01:00]} 48. Ke5 {[%clk 0:00:09]}  a3 {[%clk 0:01:00]} 49. Kf6 {[%clk 0:00:09]}  a2 {[%clk 0:00:59]} 50. e7 {[%clk 0:00:10]}  a1=Q+ {[%clk 0:00:59]} 51. Kf7 {[%clk 0:00:11]}  Qh8 {[%clk 0:00:54]} 52. e8=Q+ {[%clk 0:00:11]}  Qxe8+ {[%clk 0:00:55]} 53. Kxe8 {[%clk 0:00:11]}  d4 {[%clk 0:00:55]} 0-1


[Site "https://www.chess.com"]

[Event "Titled Tuesday Blitz February 21 Early 2023"]
[White "Rios Escobar, Adan"]
[Black "Bethke, Richard"]
[WhiteFideId "3403645"]
[BlackFideId "12959243"]
[WhiteElo "2234"]
[BlackElo "2382"]
[Result "1-0"]
[Round "06"]
[TimeControl "180+2"]
[Date "2023.02.21"]
[WhiteClock "0:00:20"]
[BlackClock "0:00:09"]

1. d4 {[%clk 0:02:58]}  Nf6 {[%clk 0:02:59]} 2. g3 {[%clk 0:02:53]}  e6 {[%clk 0:03:00]} 3. c4 {[%clk 0:02:53]}  d5 {[%clk 0:02:58]} 4. Bg2 {[%clk 0:02:51]}  Be7 {[%clk 0:02:54]} 5. Nf3 {[%clk 0:02:51]}  O-O {[%clk 0:02:53]} 6. O-O {[%clk 0:02:52]}  c6 {[%clk 0:02:49]} 7. Qc2 {[%clk 0:02:51]}  Nbd7 {[%clk 0:02:49]} 8. Nbd2 {[%clk 0:02:50]}  b6 {[%clk 0:02:49]} 9. e4 {[%clk 0:02:49]}  Bb7 {[%clk 0:02:44]} 10. e5 {[%clk 0:02:46]}  Ne8 {[%clk 0:02:44]} 11. cxd5 {[%clk 0:02:47]}  cxd5 {[%clk 0:02:37]} 12. Rd1 {[%clk 0:02:43]}  Rc8 {[%clk 0:02:33]} 13. Qd3 {[%clk 0:02:43]}  Nc7 {[%clk 0:02:28]} 14. Ne1 {[%clk 0:02:42]}  f6 {[%clk 0:02:26]} 15. exf6 {[%clk 0:02:22]}  Bxf6 {[%clk 0:02:22]} 16. Ndf3 {[%clk 0:02:22]}  e5 {[%clk 0:02:13]} 17. dxe5 {[%clk 0:02:15]}  Nxe5 {[%clk 0:02:14]} 18. Nxe5 {[%clk 0:02:14]}  Bxe5 {[%clk 0:02:13]} 19. Nf3 {[%clk 0:02:11]}  Bf6 {[%clk 0:02:07]} 20. Be3 {[%clk 0:02:07]}  Bxb2 {[%clk 0:02:05]} 21. Rab1 {[%clk 0:01:58]}  Bf6 {[%clk 0:02:05]} 22. Nd4 {[%clk 0:01:58]}  Qe8 {[%clk 0:01:54]} 23. Qb3 {[%clk 0:01:46]}  Rd8 {[%clk 0:01:49]} 24. Rbc1 {[%clk 0:01:36]}  Qf7 {[%clk 0:01:48]} 25. Nc6 {[%clk 0:01:27]}  Rd6 {[%clk 0:01:43]} 26. Nxa7 {[%clk 0:01:26]}  Ra8 {[%clk 0:01:20]} 27. Bxb6 {[%clk 0:00:59]}  Bd8 {[%clk 0:01:02]} 28. a4 {[%clk 0:00:52]}  Ne6 {[%clk 0:00:39]} 29. a5 {[%clk 0:00:50]}  Bxb6 {[%clk 0:00:37]} 30. axb6 {[%clk 0:00:49]}  d4 {[%clk 0:00:31]} 31. Rc7 {[%clk 0:00:22]}  Nxc7 {[%clk 0:00:29]} 32. Qxf7+ {[%clk 0:00:22]}  Kxf7 {[%clk 0:00:28]} 33. Bxb7 {[%clk 0:00:21]}  Rxb6 {[%clk 0:00:17]} 34. Bxa8 {[%clk 0:00:21]}  Nxa8 {[%clk 0:00:18]} 35. Rxd4 {[%clk 0:00:20]}  Ke6 {[%clk 0:00:16]} 36. Nc8 {[%clk 0:00:18]}  Rc6 {[%clk 0:00:15]} 37. Na7 {[%clk 0:00:14]}  Rc5 {[%clk 0:00:14]} 38. Rd8 {[%clk 0:00:11]}  Nb6 {[%clk 0:00:14]} 39. Rg8 {[%clk 0:00:11]}  Kf7 {[%clk 0:00:03]} 40. Rb8 {[%clk 0:00:11]}  Nc4 {[%clk 0:00:02]} 41. Rc8 {[%clk 0:00:10]}  Rxc8 {[%clk 0:00:02]} 42. Nxc8 {[%clk 0:00:11]}  Ke6 {[%clk 0:00:02]} 43. Na7 {[%clk 0:00:11]}  Nd6 {[%clk 0:00:02]} 44. Nc6 {[%clk 0:00:11]}  Kd5 {[%clk 0:00:03]} 45. Nb4+ {[%clk 0:00:11]}  Kc4 {[%clk 0:00:03]} 46. Nc2 {[%clk 0:00:11]}  Kd3 {[%clk 0:00:03]} 47. Ne3 {[%clk 0:00:11]}  Ne4 {[%clk 0:00:04]} 48. Kg2 {[%clk 0:00:10]}  Ke2 {[%clk 0:00:04]} 49. Ng4 {[%clk 0:00:09]}  h5 {[%clk 0:00:05]} 50. f3 {[%clk 0:00:09]}  Nd2 {[%clk 0:00:03]} 51. Ne5 {[%clk 0:00:08]}  g5 {[%clk 0:00:03]} 52. f4 {[%clk 0:00:08]}  g4 {[%clk 0:00:03]} 53. f5 {[%clk 0:00:08]}  Ne4 {[%clk 0:00:01]} 54. Nd7 {[%clk 0:00:09]}  Ke3 {[%clk 0:00:01]} 55. f6 {[%clk 0:00:09]}  Ng5 {[%clk 0:00:02]} 56. Ne5 {[%clk 0:00:09]}  Ke4 {[%clk 0:00:02]} 57. f7 {[%clk 0:00:10]}  Nh7 {[%clk 0:00:02]} 58. Ng6 {[%clk 0:00:10]}  Kf5 {[%clk 0:00:03]} 59. f8=Q+ {[%clk 0:00:11]}  Nxf8 {[%clk 0:00:03]} 60. Nxf8 {[%clk 0:00:12]}  Kg5 {[%clk 0:00:03]} 61. Nd7 {[%clk 0:00:12]}  h4 {[%clk 0:00:04]} 62. Ne5 {[%clk 0:00:12]}  hxg3 {[%clk 0:00:04]} 63. hxg3 {[%clk 0:00:13]}  Kf5 {[%clk 0:00:05]} 64. Nd3 {[%clk 0:00:13]}  Ke4 {[%clk 0:00:05]} 65. Nf2+ {[%clk 0:00:14]}  Kf5 {[%clk 0:00:06]} 66. Kf1 {[%clk 0:00:14]}  Kg5 {[%clk 0:00:03]} 67. Ke2 {[%clk 0:00:15]}  Kf5 {[%clk 0:00:03]} 68. Ke3 {[%clk 0:00:16]}  Ke5 {[%clk 0:00:04]} 69. Nxg4+ {[%clk 0:00:16]}  Kf5 {[%clk 0:00:04]} 70. Nf2 {[%clk 0:00:17]}  Kg5 {[%clk 0:00:05]} 71. Kf3 {[%clk 0:00:18]}  Kf5 {[%clk 0:00:05]} 72. g4+ {[%clk 0:00:18]}  Kg5 {[%clk 0:00:05]} 73. Kg3 {[%clk 0:00:18]}  Kg6 {[%clk 0:00:06]} 74. Kf4 {[%clk 0:00:19]}  Kh6 {[%clk 0:00:07]} 75. g5+ {[%clk 0:00:20]}  Kg6 {[%clk 0:00:07]} 76. Kg4 {[%clk 0:00:20]}  Kh7 {[%clk 0:00:08]} 77. Kf5 {[%clk 0:00:21]}  Kg7 {[%clk 0:00:08]} 78. g6 {[%clk 0:00:21]}  Kg8 {[%clk 0:00:08]} 79. Kf6 {[%clk 0:00:22]}  Kh8 {[%clk 0:00:08]} 80. Ng4 {[%clk 0:00:21]}  Kg8 {[%clk 0:00:08]} 81. Nh6+ {[%clk 0:00:19]}  Kh8 {[%clk 0:00:08]} 82. g7+ {[%clk 0:00:19]}  Kh7 {[%clk 0:00:09]} 83. g8=Q+ {[%clk 0:00:20]} 1-0


[Site "https://www.chess.com"]

[Event "Titled Tuesday Blitz February 21 Early 2023"]
[White "Ilinca Ilinca, Felix Antonio"]
[Black "Todev, Simeon"]
[WhiteFideId "54764998"]
[BlackFideId "2925133"]
[WhiteElo "2266"]
[BlackElo "2033"]
[Result "1/2-1/2"]
[Round "06"]
[TimeControl "180+2"]
[Date "2023.02.21"]
[WhiteClock "0:00:21"]
[BlackClock "0:00:04"]

1. e4 {[%clk 0:03:00]}  g6 {[%clk 0:02:54]} 2. d4 {[%clk 0:02:59]}  Bg7 {[%clk 0:02:51]} 3. h4 {[%clk 0:02:59]}  d5 {[%clk 0:02:49]} 4. e5 {[%clk 0:02:58]}  c5 {[%clk 0:02:49]} 5. Nc3 {[%clk 0:02:46]}  cxd4 {[%clk 0:02:41]} 6. Qxd4 {[%clk 0:02:43]}  Nc6 {[%clk 0:02:42]} 7. Bb5 {[%clk 0:02:38]}  e6 {[%clk 0:02:39]} 8. h5 {[%clk 0:02:35]}  Bd7 {[%clk 0:02:32]} 9. Bxc6 {[%clk 0:02:31]}  bxc6 {[%clk 0:02:26]} 10. hxg6 {[%clk 0:02:26]}  fxg6 {[%clk 0:02:18]} 11. Na4 {[%clk 0:02:19]}  Qc7 {[%clk 0:02:07]} 12. Nf3 {[%clk 0:02:16]}  Ne7 {[%clk 0:02:02]} 13. Nc5 {[%clk 0:02:06]}  Nf5 {[%clk 0:02:01]} 14. Qc3 {[%clk 0:02:04]}  d4 {[%clk 0:01:52]} 15. Qc4 {[%clk 0:01:57]}  Bxe5 {[%clk 0:01:45]} 16. Nxe6 {[%clk 0:01:52]}  Qd6 {[%clk 0:01:42]} 17. Nc5 {[%clk 0:01:48]}  Bf6 {[%clk 0:01:18]} 18. Bd2 {[%clk 0:01:42]}  Be7 {[%clk 0:01:12]} 19. Bb4 {[%clk 0:01:29]}  Rb8 {[%clk 0:01:01]} 20. Ba3 {[%clk 0:01:17]}  Qd5 {[%clk 0:00:49]} 21. Qxd5 {[%clk 0:01:14]}  cxd5 {[%clk 0:00:49]} 22. O-O-O {[%clk 0:01:14]}  Bc8 {[%clk 0:00:36]} 23. Rhe1 {[%clk 0:01:04]}  O-O {[%clk 0:00:33]} 24. g4 {[%clk 0:00:58]}  Ne3 {[%clk 0:00:23]} 25. fxe3 {[%clk 0:00:48]}  Rxf3 {[%clk 0:00:22]} 26. exd4 {[%clk 0:00:49]}  Bg5+ {[%clk 0:00:21]} 27. Kb1 {[%clk 0:00:46]}  Bxg4 {[%clk 0:00:12]} 28. Rd3 {[%clk 0:00:45]}  Rxd3 {[%clk 0:00:10]} 29. Nxd3 {[%clk 0:00:46]}  Bf5 {[%clk 0:00:10]} 30. Ne5 {[%clk 0:00:45]}  Rc8 {[%clk 0:00:09]} 31. Re2 {[%clk 0:00:45]}  Bf6 {[%clk 0:00:07]} 32. Bc5 {[%clk 0:00:44]}  Bxe5 {[%clk 0:00:05]} 33. Rxe5 {[%clk 0:00:43]}  Rc7 {[%clk 0:00:05]} 34. Kc1 {[%clk 0:00:42]}  Rd7 {[%clk 0:00:05]} 35. c3 {[%clk 0:00:40]}  h5 {[%clk 0:00:05]} 36. Re8+ {[%clk 0:00:36]}  Kh7 {[%clk 0:00:04]} 37. Be7 {[%clk 0:00:35]}  Kg7 {[%clk 0:00:03]} 38. Bg5 {[%clk 0:00:34]}  Kh7 {[%clk 0:00:03]} 39. Bf6 {[%clk 0:00:33]}  g5 {[%clk 0:00:03]} 40. Bxg5 {[%clk 0:00:31]}  Kg6 {[%clk 0:00:03]} 41. Bh4 {[%clk 0:00:31]}  Be4 {[%clk 0:00:04]} 42. Kd2 {[%clk 0:00:29]}  Rf7 {[%clk 0:00:04]} 43. Re6+ {[%clk 0:00:28]}  Kf5 {[%clk 0:00:03]} 44. Rh6 {[%clk 0:00:26]}  Kg4 {[%clk 0:00:03]} 45. Bd8 {[%clk 0:00:27]}  Rf2+ {[%clk 0:00:03]} 46. Ke3 {[%clk 0:00:27]}  Rxb2 {[%clk 0:00:01]} 47. Rh8 {[%clk 0:00:26]}  Rc2 {[%clk 0:00:01]} 48. Rg8+ {[%clk 0:00:26]}  Kh3 {[%clk 0:00:02]} 49. Kf4 {[%clk 0:00:23]}  Rxc3 {[%clk 0:00:01]} 50. Rg5 {[%clk 0:00:22]}  Rf3+ {[%clk 0:00:02]} 51. Ke5 {[%clk 0:00:22]}  Rg3 {[%clk 0:00:02]} 52. Rxh5+ {[%clk 0:00:22]}  Kg2 {[%clk 0:00:02]} 53. a4 {[%clk 0:00:20]}  Ra3 {[%clk 0:00:03]} 54. Rg5+ {[%clk 0:00:20]}  Kf3 {[%clk 0:00:03]} 55. a5 {[%clk 0:00:18]}  Rb3 {[%clk 0:00:02]} 56. Rg7 {[%clk 0:00:18]}  Rb8 {[%clk 0:00:01]} 57. Bf6 {[%clk 0:00:18]}  Re8+ {[%clk 0:00:02]} 58. Kd6 {[%clk 0:00:18]}  Rf8 {[%clk 0:00:02]} 59. Be5 {[%clk 0:00:18]}  a6 {[%clk 0:00:03]} 60. Ra7 {[%clk 0:00:19]}  Bd3 {[%clk 0:00:03]} 61. Kxd5 {[%clk 0:00:19]}  Rd8+ {[%clk 0:00:03]} 62. Kc5 {[%clk 0:00:19]}  Rc8+ {[%clk 0:00:03]} 63. Kb6 {[%clk 0:00:20]}  Rc3 {[%clk 0:00:03]} 64. d5 {[%clk 0:00:19]}  Rb3+ {[%clk 0:00:03]} 65. Kc6 {[%clk 0:00:20]}  Ke4 {[%clk 0:00:04]} 66. Bd6 {[%clk 0:00:20]}  Rc3+ {[%clk 0:00:04]} 67. Bc5 {[%clk 0:00:20]}  Bb5+ {[%clk 0:00:04]} 68. Kb6 {[%clk 0:00:20]}  Kxd5 {[%clk 0:00:04]} 69. Bf8 {[%clk 0:00:20]}  Rc6+ {[%clk 0:00:04]} 70. Kb7 {[%clk 0:00:21]}  Rf6 {[%clk 0:00:03]} 71. Be7 {[%clk 0:00:21]}  Rf7 {[%clk 0:00:03]} 72. Kc8 {[%clk 0:00:21]}  Bc6 {[%clk 0:00:02]} 73. Kd8 {[%clk 0:00:20]}  Rh7 {[%clk 0:00:03]} 74. Rxa6 {[%clk 0:00:20]}  Rh8+ {[%clk 0:00:02]} 75. Kc7 {[%clk 0:00:21]}  Rh7 {[%clk 0:00:03]} 76. Rxc6 {[%clk 0:00:21]}  Rxe7+ {[%clk 0:00:03]} 77. Kb6 {[%clk 0:00:21]}  Re1 {[%clk 0:00:02]} 78. Rc5+ {[%clk 0:00:21]}  Kd6 {[%clk 0:00:03]} 79. Rb5 {[%clk 0:00:19]}  Re8 {[%clk 0:00:02]} 80. a6 {[%clk 0:00:16]}  Rb8+ {[%clk 0:00:02]} 81. Ka5 {[%clk 0:00:17]}  Rxb5+ {[%clk 0:00:02]} 82. Kxb5 {[%clk 0:00:18]}  Kc7 {[%clk 0:00:03]} 83. Kc5 {[%clk 0:00:19]}  Kb8 {[%clk 0:00:03]} 84. Kb6 {[%clk 0:00:20]}  Ka8 {[%clk 0:00:04]} 85. a7 {[%clk 0:00:21]} 1/2-1/2


[Site "https://www.chess.com"]

[Event "Titled Tuesday Blitz February 21 Early 2023"]
[White "Dauner, Benedikt"]
[Black "Tsyhanchuk, Stanislav"]
[WhiteFideId "16225899"]
[BlackFideId "13505130"]
[WhiteElo "2400"]
[BlackElo "2273"]
[Result "1-0"]
[Round "06"]
[TimeControl "180+2"]
[Date "2023.02.21"]
[WhiteClock "0:00:15"]
[BlackClock "0:00:06"]

1. e4 {[%clk 0:02:00]}  c5 {[%clk 0:02:59]} 2. Nf3 {[%clk 0:02:00]}  d6 {[%clk 0:02:59]} 3. d4 {[%clk 0:02:01]}  cxd4 {[%clk 0:02:58]} 4. Nxd4 {[%clk 0:02:02]}  Nf6 {[%clk 0:02:59]} 5. Nc3 {[%clk 0:02:02]}  a6 {[%clk 0:02:59]} 6. a3 {[%clk 0:01:53]}  e5 {[%clk 0:02:54]} 7. Nf5 {[%clk 0:01:52]}  d5 {[%clk 0:02:42]} 8. Bg5 {[%clk 0:01:48]}  d4 {[%clk 0:02:38]} 9. Bxf6 {[%clk 0:01:48]}  gxf6 {[%clk 0:02:31]} 10. Nb1 {[%clk 0:01:48]}  Bxf5 {[%clk 0:02:27]} 11. exf5 {[%clk 0:01:49]}  Nc6 {[%clk 0:02:25]} 12. Bd3 {[%clk 0:01:47]}  h5 {[%clk 0:02:21]} 13. Nd2 {[%clk 0:01:47]}  h4 {[%clk 0:02:14]} 14. O-O {[%clk 0:01:40]}  h3 {[%clk 0:02:06]} 15. g3 {[%clk 0:01:39]}  Bh6 {[%clk 0:01:51]} 16. Ne4 {[%clk 0:01:38]}  Bg5 {[%clk 0:01:41]} 17. b4 {[%clk 0:01:36]}  Qd5 {[%clk 0:01:37]} 18. Qf3 {[%clk 0:01:33]}  O-O-O {[%clk 0:01:32]} 19. Rfb1 {[%clk 0:01:33]}  Na7 {[%clk 0:01:10]} 20. a4 {[%clk 0:01:29]}  Kb8 {[%clk 0:01:10]} 21. b5 {[%clk 0:01:27]}  a5 {[%clk 0:01:10]} 22. b6 {[%clk 0:01:26]}  Nc8 {[%clk 0:01:10]} 23. Rb5 {[%clk 0:01:26]}  Qc6 {[%clk 0:01:06]} 24. Rab1 {[%clk 0:01:23]}  Nd6 {[%clk 0:01:04]} 25. Rxa5 {[%clk 0:01:18]}  Nxe4 {[%clk 0:00:49]} 26. Bxe4 {[%clk 0:01:19]}  Qc3 {[%clk 0:00:49]} 27. Ra7 {[%clk 0:00:54]}  Rd7 {[%clk 0:00:48]} 28. a5 {[%clk 0:00:32]}  Qxf3 {[%clk 0:00:17]} 29. Bxf3 {[%clk 0:00:33]}  Re8 {[%clk 0:00:17]} 30. Be4 {[%clk 0:00:33]}  Rc8 {[%clk 0:00:15]} 31. a6 {[%clk 0:00:32]}  Rc5 {[%clk 0:00:09]} 32. Ra1 {[%clk 0:00:22]}  Rdd5 {[%clk 0:00:07]} 33. Rxb7+ {[%clk 0:00:17]}  Kc8 {[%clk 0:00:06]} 34. Rxf7 {[%clk 0:00:17]}  Rb5 {[%clk 0:00:06]} 35. a7 {[%clk 0:00:16]}  Rxb6 {[%clk 0:00:06]} 36. a8=Q+ {[%clk 0:00:15]}  Rb8 {[%clk 0:00:07]} 37. Qc6+ {[%clk 0:00:15]}  Kd8 {[%clk 0:00:07]} 38. Qxd5+ {[%clk 0:00:15]}  Ke8 {[%clk 0:00:07]} 39. Qe6+ {[%clk 0:00:15]}  Kd8 {[%clk 0:00:07]} 40. Rd7+ {[%clk 0:00:15]}  Kc8 {[%clk 0:00:07]} 41. Bb7+ {[%clk 0:00:15]}  Rxb7 {[%clk 0:00:06]} 42. Ra8+ {[%clk 0:00:15]}  Rb8 {[%clk 0:00:06]} 43. Qe8# {[%clk 0:00:15]} 1-0


[Site "https://www.chess.com"]

[Event "Titled Tuesday Blitz February 21 Early 2023"]
[White "Smith, Garrett L"]
[Black "Buchenau, Frank"]
[WhiteFideId "2024829"]
[BlackFideId "4604350"]
[WhiteElo "2047"]
[BlackElo "2222"]
[Result "1-0"]
[Round "06"]
[TimeControl "180+2"]
[Date "2023.02.21"]
[WhiteClock "0:00:49"]
[BlackClock "0:00:12"]

1. e4 {[%clk 0:03:00]}  c6 {[%clk 0:02:50]} 2. d4 {[%clk 0:02:53]}  d5 {[%clk 0:02:49]} 3. e5 {[%clk 0:02:53]}  Bf5 {[%clk 0:02:49]} 4. Nd2 {[%clk 0:02:54]}  e6 {[%clk 0:02:47]} 5. Nb3 {[%clk 0:02:54]}  Nd7 {[%clk 0:02:46]} 6. Nf3 {[%clk 0:02:53]}  h6 {[%clk 0:02:45]} 7. Be2 {[%clk 0:02:52]}  Ne7 {[%clk 0:02:44]} 8. O-O {[%clk 0:02:51]}  c5 {[%clk 0:02:42]} 9. c4 {[%clk 0:02:49]}  cxd4 {[%clk 0:02:32]} 10. Nbxd4 {[%clk 0:02:48]}  Bh7 {[%clk 0:02:28]} 11. Qa4 {[%clk 0:02:35]}  Nc8 {[%clk 0:01:57]} 12. cxd5 {[%clk 0:02:30]}  Nb6 {[%clk 0:01:56]} 13. Qb3 {[%clk 0:02:20]}  exd5 {[%clk 0:01:48]} 14. e6 {[%clk 0:02:15]}  fxe6 {[%clk 0:01:19]} 15. Nxe6 {[%clk 0:02:16]}  Qc8 {[%clk 0:00:54]} 16. Re1 {[%clk 0:01:30]}  Kf7 {[%clk 0:00:49]} 17. Bb5 {[%clk 0:01:15]}  Bd6 {[%clk 0:00:42]} 18. Bd2 {[%clk 0:01:11]}  Re8 {[%clk 0:00:41]} 19. Rac1 {[%clk 0:01:08]}  Qb8 {[%clk 0:00:33]} 20. Bxd7 {[%clk 0:01:04]}  Nxd7 {[%clk 0:00:30]} 21. Qxd5 {[%clk 0:01:04]}  Nf6 {[%clk 0:00:14]} 22. Nd8+ {[%clk 0:00:49]}  Kg6 {[%clk 0:00:12]} 23. Nh4# {[%clk 0:00:49]} 1-0


[Site "https://www.chess.com"]